bitfinex/quotes_ETHUSD_20250616
["timestamp","ask_amount","ask_price","bid_price","bid_amount"]
[1750073929471,0.2408488,2616.8,2616.7,26.36362863]
[1750073930005,0.2408488,2616.8,2616.7,26.72127447]
[1750073930284,0.2408488,2616.8,2616.7,26.72127828]
[1750073930488,0.2408488,2616.8,2616.7,18.05862863]
[1750073930672,0.2408488,2616.8,2616.7,26.36062863]
[1750073931239,0.1904,2617.3,2617.2,3.82087727]
[1750073931578,0.1904,2617.3,2617.2,10.3790789]
[1750073931780,0.1904,2617.3,2617.2,11.7608846]
[1750073931951,0.4026297,2617.5,2617.4,3.82058531]
[1750073932286,0.4026297,2617.5,2617.4,10.37778575]
[1750073932579,0.4026297,2617.5,2617.4,10.69713759]
[1750073932780,0.4026297,2617.5,2617.4,10.33958531]
[1750073933104,0.2122297,2617.5,2617.4,10.33958531]
[1750073933244,0.2122297,2617.5,2617.4,12.36108253]
[1750073933882,0.2122297,2617.5,2617.4,12.71858007]
[1750073934083,0.2122297,2617.5,2617.4,12.55148253]
[1750073934295,0.2122297,2617.5,2617.4,10.33958531]
[1750073934661,0.2122297,2617.5,2617.4,10.69717734]
[1750073934875,0.2122297,2617.5,2617.4,10.33958531]
[1750073935052,0.2122297,2617.5,2617.4,11.34378531]
[1750073935257,0.2122297,2617.5,2617.4,4.82478531]
[1750073935592,0.2122297,2617.5,2617.4,14.08908215]
[1750073935897,0.2122297,2617.5,2617.4,3.82058531]
[1750073936097,0.2122297,2617.5,2617.4,10.33858531]
[1750073936256,0.2122297,2617.5,2617.4,10.6961515]
[1750073936456,0.2122297,2617.5,2617.4,10.33858531]
[1750073936670,0.2122297,2617.5,2617.4,3.82058531]
[1750073937609,0.2122297,2617.5,2617.4,3.85878429]
[1750073937774,0.2122297,2617.5,2617.4,5.5072235]
[1750073937975,0.2122297,2617.5,2617.4,5.8646555]
[1750073938314,0.2122297,2617.5,2617.4,5.5072235]
[1750073938696,0.2122297,2617.5,2617.4,10.33858531]
[1750073939577,0.2122297,2617.5,2617.4,10.6964233]
[1750073939948,0.2122297,2617.5,2617.4,4.1784233]
[1750073940115,0.2122297,2617.5,2617.4,4.17687058]
[1750073940322,0.2122297,2617.5,2617.4,3.82058531]
[1750073940617,0.2122297,2617.5,2617.4,3.85878668]
[1750073941625,0.2122297,2617.5,2617.4,3.82058531]
[1750073941860,1.0133297,2617.5,2617.2,3.82081823]
[1750073942060,6.80192594,2617.5,2617.2,3.82078171]
[1750073942267,0.7564,2617.2,2616.5,3.82189948]
[1750073942467,10.7564,2617.2,2616.6,0.3945351]
[1750073942619,10.7564,2616.9,2616.7,3.82159435]
[1750073943035,10.7564,2616.9,2616.8,3.82146132]
[1750073943325,0.7564,2616.9,2616.7,3.82153546]
[1750073945137,0.7564,2616.9,2616.8,3.82146132]
[1750073946661,0.7564,2616.9,2616.7,3.82154447]
[1750073946662,0.1904,2616.8,2616.7,3.82154447]
[1750073946866,0.7564,2616.9,2616.7,3.82154447]
[1750073949739,0.1904,2616.7,2616.6,3.82170411]
[1750073949959,0.7564,2616.9,2616.6,3.82170411]
[1750073950168,0.7564,2616.9,2616.7,3.82159102]
[1750073950531,10.7796,2616.7,2616.0,0.1904]
[1750073950734,0.7796,2616.4,2615.5,3.82336073]
[1750073950952,0.7796,2616.4,2615.3,11.11174304]
[1750073950953,0.7796,2616.3,2615.3,11.11174304]
[1750073951167,0.7796,2616.3,2616.0,3.82256559]
[1750073951375,2.8914567,2616.3,2616.0,3.82256559]
[1750073951673,2.8914567,2616.3,2615.9,3.82267564]
[1750073951875,2.8914567,2616.3,2616.0,3.82261265]
[1750073952404,2.8914567,2616.3,2615.3,4.59469647]
[1750073952405,0.7566,2616.2,2615.3,4.59469647]
[1750073952582,0.7566,2616.1,2615.8,3.82284258]
[1750073953070,1.79581889,2616.1,2615.7,3.82298752]
[1750073953374,0.7566,2615.9,2615.1,3.84392878]
[1750073953580,0.7566,2615.9,2615.5,3.82326937]
[1750073953870,10.0,2615.8,2615.4,3.8234177]
[1750073954176,10.0,2615.8,2615.6,3.82319917]
[1750073954482,10.0,2615.8,2615.7,3.82306839]
[1750073958061,0.8,2616.2,2616.1,3.82248385]
[1750073958308,7.318,2616.2,2616.1,3.82248385]
[1750073959111,0.7571,2616.0,2615.7,3.8230067]
[1750073959649,0.7571,2616.0,2615.2,4.63113196]
[1750073959650,0.7571,2616.0,2615.9,3.8227761]
[1750073959950,0.8207,2616.6,2615.9,4.58729044]
[1750073960065,6.518,2616.3,2616.2,3.82233774]
[1750073960274,16.518,2616.3,2616.2,3.82233774]
[1750073961073,10.0,2616.3,2616.2,3.82233774]
[1750073961272,16.518,2616.3,2616.2,3.82233774]
[1750073961994,10.0,2616.3,2616.2,3.82233774]
[1750073962302,16.518,2616.4,2616.3,3.82219164]
[1750073963358,0.8207,2616.6,2616.5,3.82189948]
[1750073963559,17.3387,2616.6,2616.5,3.82189948]
[1750073965177,0.1904,2616.5,2615.9,0.7872]
[1750073965379,17.3387,2616.6,2616.3,3.82213659]
[1750073965686,1.73387,2616.5,2616.3,3.82213659]
[1750073966525,1.73387,2616.5,2616.1,3.82237513]
[1750073966526,0.1904,2616.3,2616.2,3.82225505]
[1750073966680,17.3387,2616.6,2616.2,3.82225505]
[1750073966878,5.79294219,2616.3,2616.2,3.82225505]
[1750073967198,10.0,2616.4,2616.3,3.82213705]
[1750073968114,6.61364219,2616.6,2616.5,3.82189948]
[1750073968274,23.13064219,2616.6,2616.5,3.82189948]
[1750073968471,11.73247971,2616.6,2616.5,3.82189948]
[1750073968690,17.3377,2616.6,2616.5,3.82189948]
[1750073969271,10.8207,2616.6,2616.5,3.82189948]
[1750073969470,17.3377,2616.6,2616.5,3.82189948]
[1750073969670,7.3377,2616.6,2616.5,3.82189948]
[1750073971286,6.517,2616.6,2616.5,3.82189948]
[1750073971480,6.517,2616.6,2616.4,3.82201743]
[1750073971481,0.7987,2616.8,2616.7,3.82160736]
[1750073971817,17.3147,2616.8,2616.7,3.82160736]
[1750073972019,10.0,2616.8,2616.7,3.82160736]
[1750073972219,6.516,2616.8,2616.6,3.82175342]
[1750073972415,6.516,2616.8,2616.7,3.82160736]
[1750073972621,0.7987,2617.1,2617.0,3.82116927]
[1750073972779,8.66393097,2617.1,2617.0,3.82116927]
[1750073972984,10.1904,2617.0,2616.9,3.82122876]
[1750073973181,10.91360969,2617.0,2616.9,3.82122876]
[1750073973787,10.0,2617.0,2616.9,3.82122876]
[1750073974331,10.7987,2617.1,2617.0,3.82116927]
[1750073974693,17.3137,2617.1,2617.0,3.82116927]
[1750073974894,18.22737277,2617.1,2617.0,3.82116927]
[1750073975355,6.515,2617.1,2617.0,3.82116927]
[1750073978579,24.62106641,2617.1,2617.0,3.82116927]
[1750073979477,16.515,2617.1,2617.0,3.82116927]
[1750073979852,10.0,2617.1,2617.0,3.82116927]
[1750073980265,16.514,2617.1,2617.0,3.82116927]
[1750073981803,6.514,2617.1,2617.0,3.82116927]
[1750073982309,0.91303526,2617.3,2617.2,3.82087727]
[1750073982621,22.30594219,2617.3,2617.2,3.82087727]
[1750073982909,25.61709817,2617.3,2617.2,3.82087727]
[1750073983721,25.61704796,2617.3,2617.2,3.82087727]
[1750073983877,23.21892724,2617.3,2617.2,3.82087727]
[1750073985076,17.42598505,2617.3,2617.2,3.82087727]
[1750073985580,10.91298505,2617.3,2617.2,3.82087727]
[1750073985902,16.512,2617.3,2617.2,3.82087727]
[1750073986110,17.42498505,2617.3,2617.2,3.82087727]
[1750073986975,10.1904,2617.2,2616.7,0.8139]
[1750073987178,12.30494219,2617.1,2617.0,3.82102827]
[1750073988178,7.42607547,2617.1,2617.0,3.82102827]
[1750073988480,6.512,2617.1,2617.0,3.82102827]
[1750073988699,7.42619688,2617.1,2617.0,3.82102827]
[1750073988899,0.1904,2617.0,2616.8,3.82133586]
[1750073989103,0.7617,2616.7,2616.0,4.64992223]
[1750073989306,5.79294219,2616.5,2616.4,3.82198103]
[1750073989512,15.79294219,2616.5,2616.4,3.82198103]
[1750073989784,16.70713907,2616.5,2616.4,3.82198103]
[1750073991632,9.61418626,2617.0,2616.8,3.82133006]
[1750073991633,10.7617,2617.0,2616.8,3.82133006]
[1750073991804,6.511,2616.9,2616.8,3.82133006]
[1750073992003,7.42586823,2616.9,2616.8,3.82133006]
[1750073992500,17.42586823,2616.9,2616.8,3.82133006]
[1750073994035,10.91486823,2616.9,2616.8,3.82133006]
[1750073994223,16.511,2616.9,2616.8,3.82133006]
[1750073994548,7.42586823,2616.9,2616.8,3.82133006]
[1750073995322,0.91486823,2616.9,2616.8,3.82133006]
[1750073995521,6.511,2616.9,2616.8,3.82133006]
[1750073995946,7.42586823,2616.9,2616.8,3.82133006]
[1750073996624,7.42586823,2616.9,2616.7,3.82156935]
[1750073996625,0.8217,2616.8,2616.5,3.82187754]
[1750073996830,12.30294219,2616.7,2616.1,0.83711924]
[1750073997142,12.30294219,2616.7,2616.4,3.8219159]
[1750073997844,5.79294219,2616.5,2616.2,3.82225915]
[1750073998018,5.79294219,2616.3,2616.2,3.82225915]
[1750073998216,22.30294219,2616.3,2616.2,3.82225915]
[1750073998420,23.21781042,2616.3,2616.2,3.82225915]
[1750073998946,17.42486823,2616.3,2616.2,3.82225915]
[1750073999806,17.42486823,2616.3,2615.8,0.7636]
[1750074000003,0.1904,2616.0,2615.9,3.8227761]
[1750074000200,10.91486823,2616.2,2616.0,3.82254042]
[1750074000201,6.51,2616.1,2616.0,3.82254042]
[1750074001229,16.51,2616.1,2616.0,3.82254042]
[1750074001933,17.42486823,2616.1,2616.0,3.82254042]
[1750074002319,0.1904,2616.0,2615.8,3.82285638]
[1750074002517,6.51,2615.9,2615.6,3.82315324]
[1750074002720,0.1904,2615.8,2615.6,3.82315324]
[1750074002937,7.42486823,2615.9,2615.7,3.82293228]
[1750074003138,6.51,2615.9,2615.7,3.82293228]
[1750074003641,0.1904,2615.7,2615.4,3.8233987]
[1750074003841,6.51,2615.6,2615.1,0.7821]
[1750074004016,14.6798656,2615.9,2615.1,0.7821]
[1750074004017,6.509,2615.5,2615.4,3.82350692]
[1750074004454,16.509,2615.5,2615.2,3.82377451]
[1750074004663,0.1904,2615.4,2615.3,3.82356117]
[1750074004864,16.509,2615.5,2615.4,3.82350692]
[1750074005575,10.1904,2615.4,2615.3,3.82358865]
[1750074005883,10.1904,2615.4,2615.2,3.82373088]
[1750074006087,6.51,2615.3,2615.2,3.82373088]
[1750074006972,25.54712528,2615.3,2615.2,3.82379932]
[1750074007766,0.1904,2615.2,2615.1,3.8438749]
[1750074008175,10.1904,2615.2,2615.1,3.8438749]
[1750074008669,10.7404,2615.2,2615.1,3.84394554]
[1750074012479,14.17685253,2615.2,2615.1,0.02]
[1750074013475,18.00065185,2615.2,2615.1,0.02]
[1750074013676,18.90974103,2615.2,2615.1,0.02]
[1750074014472,10.0,2614.3,2614.2,3.82524422]
[1750074014668,16.51,2614.3,2614.2,3.82524422]
[1750074014976,16.93983624,2614.3,2614.2,3.82524422]
[1750074022383,16.93983624,2614.3,2614.1,3.84533509]
[1750074022713,16.93983624,2614.3,2614.2,3.82526203]
[1750074024595,0.1912,2614.2,2614.1,3.84532389]
[1750074025893,16.7012,2614.2,2614.1,3.84532389]
[1750074027630,0.779,2614.8,2614.7,3.82453053]
[1750074027830,0.779,2614.8,2614.2,0.7924]
[1750074027831,0.779,2615.1,2614.9,3.824166]
[1750074028208,0.779,2615.1,2615.0,3.82409177]
[1750074028535,18.12346664,2615.1,2615.0,3.82409177]
[1750074028733,19.03365801,2615.1,2615.0,3.82409177]
[1750074029825,24.83532439,2615.1,2614.9,3.8241749]
[1750074030035,23.92513302,2615.1,2614.9,3.8241749]
[1750074031047,18.12346664,2615.1,2614.9,3.8241749]
[1750074031201,10.0,2614.9,2614.8,3.82432551]
[1750074031397,16.509,2614.9,2614.7,3.8244424]
[1750074031602,1.3284,2615.4,2615.2,3.82372954]
[1750074031813,7.059,2615.3,2615.2,3.82372954]
[1750074032130,0.7784,2615.6,2615.1,3.8239199]
[1750074032354,0.3866373,2615.8,2615.7,3.82306839]
[1750074032494,6.8946373,2615.8,2615.7,3.82306839]
[1750074032702,15.93962709,2615.8,2615.1,0.7556]
[1750074032951,9.04498979,2615.5,2615.0,3.82403346]
[1750074033114,17.41249898,2615.4,2615.2,3.82377987]
[1750074033639,0.91189189,2615.3,2615.2,3.82377987]
[1750074036244,0.91189189,2615.3,2614.9,0.8265]
[1750074036410,16.507,2615.2,2615.1,3.82387932]
[1750074036611,17.41889189,2615.2,2615.1,3.82387932]
[1750074037047,17.41889189,2615.2,2615.0,3.82399056]
[1750074037351,18.33933909,2615.2,2615.0,3.82399056]
[1750074037550,18.33933909,2615.2,2615.1,3.82394554]
[1750074037760,19.25172165,2615.2,2615.1,3.82394554]
[1750074037915,19.25172165,2615.2,2614.9,3.82423566]
[1750074037916,19.25172165,2615.2,2615.0,3.82402572]
[1750074038119,18.33933909,2615.2,2615.1,3.82394554]
[1750074038415,19.2517112,2615.2,2615.1,3.82394554]
[1750074039423,10.7404,2615.1,2614.7,0.8066]
[1750074039752,16.506,2615.0,2614.9,3.82416773]
[1750074039949,0.90449898,2615.4,2615.3,3.82365311]
[1750074040169,17.055,2615.4,2615.3,3.82365311]
[1750074040656,17.96740123,2615.4,2615.3,3.82365311]
[1750074041225,10.91240123,2615.4,2615.3,3.82365311]
[1750074041546,0.755,2616.0,2615.7,3.82298281]
[1750074041856,10.55,2615.8,2615.7,3.82298281]
[1750074042021,11.781,2615.8,2615.7,3.82298281]
[1750074042222,12.69340123,2615.8,2615.7,3.82298281]
[1750074042581,0.91240123,2615.8,2615.7,3.82298281]
[1750074042722,1.774,2616.1,2616.0,3.82262996]
[1750074042924,18.279,2616.1,2616.0,3.82262996]
[1750074043159,9.19140123,2616.1,2616.0,3.82262996]
[1750074043463,0.1904,2616.0,2615.9,3.8227761]
[1750074044165,6.6944,2616.0,2615.9,3.8227761]
[1750074045773,6.6934,2616.0,2615.9,3.8227761]
[1750074047346,0.1904,2616.0,2615.9,3.8227761]
[1750074047543,6.6924,2616.0,2615.9,3.8227761]
[1750074048486,0.1904,2616.0,2615.9,3.8227761]
[1750074048686,6.6924,2616.0,2615.9,3.8227761]
[1750074049068,0.1904,2616.0,2615.9,3.8227761]
[1750074049264,6.6924,2616.0,2615.9,4.58734336]
[1750074049580,0.1904,2616.0,2615.9,5.41324336]
[1750074052260,0.1904,2616.0,2615.9,5.45146642]
[1750074054182,0.1904,2616.0,2615.9,5.41324336]
[1750074054695,0.1904,2616.0,2615.9,3.8227761]
[1750074057478,6.6884,2616.0,2615.9,3.8227761]
[1750074057678,7.4384,2616.0,2615.7,3.82303831]
[1750074057883,7.4384,2616.0,2615.9,3.8227761]
[1750074057884,17.248,2616.0,2615.9,3.8227761]
[1750074058595,10.1904,2615.9,2615.8,3.82283768]
[1750074058775,7.248,2616.0,2615.8,3.82283768]
[1750074058974,9.87729898,2616.0,2615.8,3.82283768]
[1750074060209,9.87729898,2616.0,2615.7,3.82300279]
[1750074060412,9.87729898,2616.0,2615.5,3.82329452]
[1750074060413,9.04498979,2615.9,2615.5,3.82329452]
[1750074060614,19.04498979,2615.9,2615.5,3.82329452]
[1750074060849,10.9704,2615.5,2615.2,3.8236612]
[1750074061003,6.497,2615.4,2615.2,3.82378679]
[1750074061187,6.497,2615.4,2615.3,3.82365311]
[1750074061554,6.71186606,2615.4,2615.3,3.82365311]
[1750074061684,6.71186792,2615.4,2615.3,3.82365311]
[1750074061886,0.1904,2615.3,2615.2,3.82372757]
[1750074062094,17.277,2615.5,2615.3,3.82365311]
[1750074062300,17.827,2615.5,2615.4,3.82350692]
[1750074062725,0.1904,2615.4,2615.3,3.82357288]
[1750074062887,0.40519027,2615.4,2615.3,3.82357288]
[1750074063089,0.40517727,2615.4,2615.3,3.82357288]
[1750074063328,0.1904,2615.4,2615.3,3.82357288]
[1750074063890,0.40517062,2615.4,2615.3,3.82357288]
[1750074064224,0.1904,2615.4,2615.3,3.82357288]
[1750074064589,0.40521379,2615.4,2615.3,3.82357288]
[1750074064800,0.40522346,2615.4,2615.3,3.82357288]
[1750074065124,0.4052248,2615.4,2615.3,3.82357288]
[1750074065425,0.40519262,2615.4,2615.3,3.82357288]
[1750074065593,0.1904,2615.4,2615.3,3.82357288]
[1750074066988,0.40513334,2615.4,2615.3,3.82357288]
[1750074067307,0.1904,2615.4,2615.3,3.82357288]
[1750074067902,0.40507303,2615.4,2615.3,3.82357288]
[1750074068105,0.40505696,2615.4,2615.3,3.82357288]
[1750074068444,0.1904,2615.4,2615.3,3.82357288]
[1750074068813,6.6864,2615.4,2615.3,3.82357288]
[1750074069908,6.90106909,2615.4,2615.3,3.82357288]
[1750074070246,6.6864,2615.4,2615.3,3.82357288]
[1750074071246,16.6864,2615.4,2615.3,3.82357288]
[1750074071553,10.1904,2615.4,2615.3,3.82357288]
[1750074071738,16.6864,2615.4,2615.3,3.82357288]
[1750074073153,10.1904,2615.4,2615.3,3.82357288]
[1750074073328,16.6864,2615.4,2615.3,3.82357288]
[1750074073728,16.6864,2615.4,2614.9,0.7785]
[1750074073933,22.29204514,2615.4,2615.2,3.82376766]
[1750074074131,22.29204514,2615.4,2615.3,3.82365311]
[1750074074523,22.50673927,2615.4,2615.3,3.82365311]
[1750074074732,22.29204514,2615.4,2615.3,3.82365311]
[1750074074926,22.50674074,2615.4,2615.3,3.82365311]
[1750074075133,22.29204514,2615.4,2615.3,3.82365311]
[1750074076052,22.50675944,2615.4,2615.3,3.82365311]
[1750074076253,22.50676211,2615.4,2615.3,3.82365311]
[1750074076459,22.50676089,2615.4,2615.3,3.82365311]
[1750074076759,0.1904,2615.3,2615.2,3.82371077]
[1750074080940,0.1904,2615.3,2615.2,4.59229692]
[1750074081135,0.1904,2615.3,2615.2,5.36949692]
[1750074081727,0.1904,2615.3,2615.2,11.20377829]
[1750074081929,6.56694514,2616.4,2616.1,3.82247584]
[1750074082127,6.56694514,2616.4,2615.8,0.7749]
[1750074082128,6.493,2616.3,2616.2,3.82233008]
[1750074082367,10.0,2616.2,2616.1,3.82237769]
[1750074082549,0.91240002,2616.2,2616.1,3.82237769]
[1750074082751,6.493,2616.2,2616.1,3.82237769]
[1750074083068,0.91240002,2616.2,2616.1,3.82237769]
[1750074083262,6.493,2616.2,2616.1,3.82237769]
[1750074084084,0.91240002,2616.3,2616.2,3.82233774]
[1750074084247,6.492,2616.3,2616.2,3.82233774]
[1750074084563,7.40440002,2616.3,2616.1,3.8224218]
[1750074085669,7.40440002,2616.3,2616.2,3.82233774]
[1750074085867,0.91240002,2616.3,2616.2,3.82233774]
[1750074086031,10.0,2616.5,2616.4,3.82204555]
[1750074086227,17.40459785,2616.5,2616.4,3.82204555]
[1750074086564,10.91359785,2616.5,2616.4,3.82204555]
[1750074086864,7.40459785,2616.5,2616.4,3.82204555]
[1750074087068,16.491,2616.5,2616.4,3.82204555]
[1750074087369,0.02,2616.9,2616.8,3.82146132]
[1750074087665,6.511,2616.9,2616.8,4.60426132]
[1750074087869,6.511,2616.9,2616.8,3.82146132]
[1750074087870,0.02,2616.9,2616.8,3.82146132]
[1750074088071,6.511,2616.9,2616.8,3.82146132]
[1750074088376,6.51,2616.9,2616.8,3.82146132]
[1750074088751,6.51,2616.9,2616.4,0.84737166]
[1750074088752,10.1904,2616.8,2616.2,4.60508121]
[1750074088953,5.79604514,2616.3,2616.2,3.82229076]
[1750074089140,12.28604514,2616.3,2616.2,3.82229076]
[1750074089339,12.28604514,2616.3,2615.9,0.7828]
[1750074089567,5.79604514,2616.1,2616.0,3.82262996]
[1750074089872,12.28604514,2616.1,2616.0,3.82262996]
[1750074090765,12.28504514,2616.1,2616.0,3.82262996]
[1750074091782,12.28504514,2616.1,2615.7,4.60584682]
[1750074091980,0.7784,2616.2,2616.1,3.82248385]
[1750074092189,16.489,2616.2,2616.1,3.82237851]
[1750074092594,16.70379856,2616.2,2616.1,3.82237851]
[1750074092793,16.489,2616.2,2616.1,3.82237851]
[1750074093172,16.70379333,2616.2,2616.1,3.82237851]
[1750074093369,16.70379411,2616.2,2616.1,3.82237851]
[1750074093569,10.0,2616.2,2616.1,3.82237851]
[1750074093775,16.489,2616.2,2616.1,3.82237851]
[1750074094169,10.21480099,2616.2,2616.1,3.82237851]
[1750074094372,16.488,2616.2,2616.1,3.82237851]
[1750074095791,6.57444514,2616.4,2616.3,3.82219164]
[1750074096102,23.06244514,2616.4,2616.3,3.82219164]
[1750074096297,23.27725457,2616.4,2616.3,3.82219164]
[1750074096606,23.27725575,2616.4,2616.3,3.82219164]
[1750074096804,23.06244514,2616.4,2616.3,3.82219164]
[1750074097166,23.27725237,2616.4,2616.3,3.82219164]
[1750074097370,10.0,2616.3,2616.1,3.82239959]
[1750074097568,10.55,2616.1,2615.5,0.824]
[1750074097816,10.0,2615.9,2615.6,3.82313754]
[1750074098106,6.487,2615.8,2615.6,3.82313754]
[1750074098314,6.487,2615.8,2615.5,3.82326729]
[1750074098494,4.57795809,2615.6,2615.0,3.82403713]
[1750074098705,4.57795809,2615.6,2614.8,0.824]
[1750074098706,17.037,2615.5,2615.1,3.82387882]
[1750074098868,5.79604514,2615.3,2615.1,3.82387882]
[1750074099067,6.487,2615.2,2615.1,3.82387882]
[1750074103315,0.1904,2615.1,2615.0,3.82404353]
[1750074103634,6.487,2615.2,2615.1,3.82394554]
[1750074104034,17.1357,2615.2,2614.8,0.824]
[1750074104185,0.1912,2615.0,2614.8,3.8243149]
[1750074104534,6.486,2614.9,2614.8,3.8243149]
[1750074105908,0.1912,2614.8,2614.7,3.82444437]
[1750074106112,16.486,2614.9,2614.8,3.82438427]
[1750074107192,0.1912,2614.8,2614.5,3.82478913]
[1750074107422,6.486,2614.7,2614.6,3.8246028]
[1750074110939,6.486,2614.7,2614.1,0.02]
[1750074110940,1.3458,2614.2,2614.1,0.02]
[1750074111095,20.38890123,2614.2,2614.1,0.02]
[1750074111296,16.485,2614.2,2614.1,3.84540836]
[1750074111508,16.485,2614.2,2614.1,0.02]
[1750074112011,10.0,2614.2,2614.1,0.02]
[1750074112194,16.486,2614.2,2614.1,0.02]
[1750074113229,16.486,2614.2,2614.1,3.84540836]
[1750074113730,16.486,2614.2,2614.1,0.02]
[1750074115637,1.3101,2614.6,2614.1,0.7853]
[1750074115936,16.486,2614.5,2614.4,3.82495279]
[1750074117100,16.486,2614.5,2614.2,3.82521208]
[1750074117295,16.486,2614.5,2614.3,3.82510388]
[1750074117552,16.486,2614.5,2614.4,3.8249694]
[1750074118063,16.486,2614.5,2614.1,0.7853]
[1750074118064,10.0,2614.8,2614.6,3.82466726]
[1750074118384,16.486,2614.7,2614.6,3.82466726]
[1750074119957,10.0,2614.7,2614.6,3.82466726]
[1750074120150,16.485,2614.7,2614.6,3.82466726]
[1750074120939,22.28508975,2614.7,2614.6,3.82466726]
[1750074122226,15.80008975,2614.7,2614.6,3.82466726]
[1750074122426,22.28508975,2614.7,2614.6,3.82466726]
[1750074123437,3.82487217,2614.5,2614.1,0.02]
[1750074123636,3.82487217,2614.5,2614.1,3.84540836]
[1750074123637,5.80008975,2614.2,2614.1,3.84540836]
[1750074123843,12.28408975,2614.2,2614.1,3.84540836]
[1750074124442,12.28408975,2614.2,2614.1,0.02]
[1750074124643,29.08175781,2614.2,2614.1,0.02]
[1750074125480,27.19746333,2614.2,2614.1,0.02]
[1750074125854,20.71346333,2614.2,2614.1,0.02]
[1750074126049,27.19746333,2614.2,2614.1,0.02]
[1750074127860,26.64746333,2614.2,2614.1,0.02]
[1750074128076,24.70649578,2614.2,2614.1,0.02]
[1750074128774,25.6163141,2614.2,2614.1,0.02]
[1750074130379,26.1663141,2614.2,2614.1,0.02]
[1750074130678,29.99157613,2614.2,2614.1,0.02]
[1750074131275,31.97860475,2614.2,2614.1,0.02]
[1750074132555,28.15334272,2614.2,2614.1,0.02]
[1750074133196,31.97860475,2614.2,2614.1,0.02]
[1750074136186,37.7786945,2614.2,2614.1,0.02]
[1750074137819,37.7786945,2614.2,2613.2,3.82663352]
[1750074137820,5.80008975,2613.4,2613.2,3.82663352]
[1750074137987,15.80008975,2613.4,2613.3,3.82657942]
[1750074138192,22.28208975,2613.4,2613.3,3.82657942]
[1750074138395,0.91161819,2613.4,2613.3,3.82657942]
[1750074138612,6.482,2613.5,2613.4,4.59793299]
[1750074141111,1.92613109,2613.8,2613.7,3.8259938]
[1750074141309,18.40813109,2613.8,2613.7,3.8259938]
[1750074141636,19.32018647,2613.8,2613.7,3.8259938]
[1750074142836,19.32010807,2613.8,2613.7,3.8259938]
[1750074143642,19.31910807,2613.8,2613.7,3.8259938]
[1750074146330,2.83810807,2613.8,2613.7,5.3781072]
[1750074146536,1.92613109,2613.8,2613.7,5.3781072]
[1750074147129,1.92613109,2613.8,2613.7,5.41636261]
[1750074148834,1.92613109,2613.8,2613.7,5.41635966]
[1750074149623,1.92613109,2613.8,2613.7,5.3781072]
[1750074149840,1.92613109,2613.8,2613.7,3.8259938]
[1750074149841,2.11733109,2613.8,2613.7,3.8259938]
[1750074150968,14.39642084,2613.8,2613.7,3.8259938]
[1750074157289,24.39642084,2613.8,2613.7,3.8259938]
[1750074157583,25.30911297,2613.8,2613.7,3.8259938]
[1750074158786,15.30911297,2613.8,2613.7,3.8259938]
[1750074158999,14.39642084,2613.8,2613.7,3.8259938]
[1750074160295,8.59333109,2613.8,2613.7,3.8259938]
[1750074160499,9.5068621,2613.8,2613.7,3.8259938]
[1750074161533,8.59333109,2613.8,2613.7,3.8259938]
[1750074163922,8.59233109,2613.8,2613.7,3.8259938]
[1750074164583,2.11733109,2613.8,2613.7,3.8259938]
[1750074164902,8.59233109,2613.8,2613.7,3.8259938]
[1750074165733,8.59233109,2613.8,2613.7,4.5768938]
[1750074167889,2.11733109,2613.8,2613.7,5.4171972]
[1750074168095,2.11733109,2613.8,2613.7,5.45545354]
[1750074168292,2.11733109,2613.8,2613.7,5.45545068]
[1750074168293,1.92613109,2613.8,2613.7,5.45545068]
[1750074168539,0.36114957,2613.8,2613.7,12.12065068]
[1750074168708,0.1912,2614.4,2614.3,3.8251157]
[1750074168891,0.1912,2614.4,2614.3,4.63095991]
[1750074169091,0.1912,2614.4,2614.3,5.47657953]
[1750074169435,6.71333475,2615.3,2615.2,3.82379932]
[1750074169645,22.27308975,2615.3,2615.2,3.82379932]
[1750074169930,0.1904,2615.2,2614.8,0.7676]
[1750074170247,15.80008975,2615.0,2614.9,3.82423802]
[1750074170542,15.80008975,2615.0,2614.4,0.7582]
[1750074170543,0.7513,2614.9,2614.6,3.82453593]
[1750074170761,0.1912,2614.8,2614.7,3.82445716]
[1750074170967,15.80008975,2614.8,2614.7,3.82453053]
[1750074171478,7.39913873,2615.0,2614.9,3.82423802]
[1750074171673,22.27308975,2615.0,2614.9,3.82423802]
[1750074171873,23.1855551,2615.0,2614.9,3.82423802]
[1750074172467,10.91246535,2615.0,2614.9,3.82423802]
[1750074172625,16.472,2615.0,2614.9,3.82423802]
[1750074177744,22.27208975,2615.0,2614.9,3.82423802]
[1750074178063,22.27208975,2615.0,2614.8,3.8243104]
[1750074178064,10.1912,2614.9,2614.8,3.8243104]
[1750074178239,10.9641,2614.9,2614.8,3.8243104]
[1750074180337,10.9641,2614.9,2614.7,3.82442669]
[1750074180532,12.26908975,2614.8,2614.7,3.82442669]
[1750074181066,0.1912,2614.7,2614.6,3.82467681]
[1750074182271,0.1912,2614.7,2614.4,3.82482534]
[1750074182272,2.51451898,2614.7,2614.4,3.82482534]
[1750074182452,12.26808975,2614.6,2614.5,3.8248231]
[1750074182849,0.7967,2614.5,2613.7,0.1912]
[1750074183067,0.55,2613.5,2612.7,0.7642]
[1750074183273,5.80008975,2613.2,2613.1,3.84687229]
[1750074183431,12.26708975,2613.2,2613.1,3.84687229]
[1750074183761,15.80008975,2613.4,2613.3,3.82657942]
[1750074183959,6.467,2613.4,2613.3,3.82657942]
[1750074184161,12.26708975,2613.4,2613.3,3.82657942]
[1750074189448,12.26808975,2613.4,2613.3,3.82657942]
[1750074190655,12.26808975,2613.4,2613.2,3.8266377]
[1750074190866,14.49489873,2613.4,2613.2,3.8266377]
[1750074191397,22.26808975,2613.4,2613.3,3.82657942]
[1750074195797,0.1912,2613.3,2613.2,3.82664891]
[1750074196200,10.9623,2613.3,2613.1,0.02]
[1750074196364,22.26708975,2613.2,2613.1,0.02]
[1750074197267,22.81708975,2613.2,2613.1,0.02]
[1750074197599,25.17590873,2613.2,2613.1,0.02]
[1750074199402,19.37581898,2613.2,2613.1,0.02]
[1750074199574,15.80008975,2613.2,2613.1,3.84687229]
[1750074199778,22.26608975,2613.2,2613.1,3.84687229]
[1750074200319,22.26708975,2613.2,2613.1,3.84687229]
[1750074200805,15.80008975,2613.2,2613.1,3.84687229]
[1750074201009,1.21173077,2613.5,2613.1,3.84687229]
[1750074201010,0.38963077,2613.5,2613.4,3.82643299]